Cogmind - Beta 15 @@@ ROGUE MODE // 2025.05.08 @ 20:20:27 Player: GiggleBox Result: Destroyed by S-27 Virus with Autogun Performance ------------- Evolutions (5) 2500 Regions Visited (12) 2400 Robots Destroyed (5) 25 Value Destroyed (136) 136 Prototype IDs (42) 840 Alien Tech Used (2) 400 Bonus (1100) 1100 TOTAL SCORE: 7401 Bonus ------- Registered with UFD 300 Met Optimus in HQ 500 Met Zhirov 300 Cogmind --------- Core Integrity 0/1000 Matter 172/300 Energy 98/100 System Corruption 1% Temperature Cool (0) Movement Core (50) Location -4/Proximity Caves Parts ------- > --- POWER (2) -------- (None) > --- PROPULSION (7) --- (None) > --- UTILITY (6) ------ (None) > --- WEAPON (2) ------- (None) > --- INVENTORY (5) ---- Triangulator Reaction Control System Hardened Light Armor Plating System Shield Heavy Hammer Peak State ------------ > --- POWER ------------ Light Angular Momentum Engine Heavy Antimatter Reactor > --- PROPULSION ------- Flight Unit VTOL Module VTOL Module VTOL Module Improved Flight Unit Cesium-ion Thruster > --- UTILITY ---------- Power Amplifier Medium Storage Unit Advanced Visual Processing Unit Advanced Signal Interpreter Improved Terrain Scan Processor Experimental Utility Shielding > --- WEAPON ----------- Remote Datajack > --- INVENTORY -------- Light Deuterium Engine Improved Trap Scanner Machine Analyzer Triangulator Improved Terrain Scanner Advanced ECM Suite Reaction Control System Hardened Light Armor Plating System Shield Heavy Hammer [Rating: 56] Favorites ----------- Power Light Nuclear Core Engine Light Angular Momentum Engine Power Core Light Nuclear Core Reactor Heavy Antimatter Reactor Propulsion VTOL Module Leg Aluminum Leg Flight Unit VTOL Module Utility Medium Storage Unit Device ECM Suite Storage Medium Storage Unit Processor Advanced Visual Processing Unit Protection Experimental Utility Shielding Weapon Heavy Hammer Energy Gun EM Pulse Gun Launcher Advanced EMP Blaster Special Weapon Remote Datajack Impact Weapon Heavy Hammer Build | -11 -10 -9 -8 -8 -8 -8 -6 -5 -5 -5 -5 -4 ------- Run | Yrd Mat Mat Mat Sto Rec Scr Fac Fac Upp Upp Zhi Pro Slots Evolved 10 | . . 2 2 . . . 4 2 . . . . Power 1 | . . . . . . . 1 . . . . . Propulsion 5 | . . 2 1 . . . 1 1 . . . . Utility 4 | . . . 1 . . . 2 1 . . . . Weapon . | . . . . . . . . . . . . . Parts Attached 41 | 8 3 5 5 5 . . 6 2 . . 6 1 Power 7 | 1 1 . 1 1 . . 2 . . . 1 . Engine 4 | 1 1 . . . . . 2 . . . . . Core 2 | . . . 1 1 . . . . . . . . Reactor 1 | . . . . . . . . . . . 1 . Propulsion 11 | 2 2 3 2 1 . . . . . . 1 . Treads . | . . . . . . . . . . . . . Leg 3 | 2 . . . . . . . . . . 1 . Wheel . | . . . . . . . . . . . . . Hover . | . . . . . . . . . . . . . Flight 8 | . 2 3 2 1 . . . . . . . . Utility 16 | 2 . 1 2 1 . . 4 2 . . 3 1 Device 8 | 1 . 1 1 . . . 2 2 . . 1 . Storage 3 | 1 . . 1 . . . . . . . 1 . Processor 3 | . . . . 1 . . 2 . . . . . Hackware . | . . . . . . . . . . . . . Protection 2 | . . . . . . . . . . . 1 1 Artifact . | . . . . . . . . . . . . . Weapon 7 | 3 . 1 . 2 . . . . . . 1 . Energy Gun 3 | 3 . . . . . . . . . . . . Energy Cannon . | . . . . . . . . . . . . . Ballistic Gun . | . . . . . . . . . . . . . Ballistic Cannon . | . . . . . . . . . . . . . Launcher 2 | . . . . 2 . . . . . . . . Special Weapon 1 | . . . . . . . . . . . 1 . Impact Weapon 1 | . . 1 . . . . . . . . . . Slashing Weapon . | . . . . . . . . . . . . . Piercing Weapon . | . . . . . . . . . . . . . Special Melee Weapon . | . . . . . . . . . . . . . Unidentified Prototypes 11 | . . . . 4 . . . . . . 7 . Parts Lost 10 | . . 2 2 1 . . 1 . . . . 4 Power 2 | . . 1 . 1 . . . . . . . . Propulsion 6 | . . 1 1 . . . . . . . . 4 Utility 2 | . . . 1 . . . 1 . . . . . Weapon . | . . . . . . . . . . . . . Highest Loss Streak 4 | . . 1 2 1 . . 1 . . . . 4 To Critical Strikes . | . . . . . . . . . . . . . Average Backups 8 | 1 5 5 8 8 9 9 9 9 9 9 9 8 Power . | . 1 1 . . . 1 1 1 1 1 1 . Propulsion . | . 1 . . . 1 1 . . . . . . Utility 6 | . 1 1 5 6 6 7 7 7 7 7 7 6 Weapon 1 | . 1 2 2 2 1 . . . . . . 1 Tool/Special . | . . . . . . . . . . . . . Unused Backups 12 | . . . 1 1 1 . 4 . . . . 5 Power . | . . . . . . . . . . . . . Propulsion . | . . . . . . . . . . . . . Utility 10 | . . . 1 . 1 . 3 . . . . 5 Weapon 1 | . . . . 1 . . . . . . . . Tool/Special 1 | . . . . . . . 1 . . . . . Average Slot Usage (%) 84 | . 81 82 79 90 90 89 83 80 82 82 82 48 Engine 2 | . 5 10 . . . . 5 5 5 5 5 2 Core 5 | . . . 7 9 9 9 . . . . . . Flight 40 | . 18 42 43 45 45 45 38 33 35 35 35 20 Device 9 | . 14 11 16 9 9 9 9 11 11 11 8 5 Storage 8 | . 14 11 9 9 9 9 6 5 5 5 5 2 Processor 9 | . . . . 9 9 9 15 17 17 17 17 10 Impact Weapon 6 | . . 1 3 8 9 8 6 5 5 5 1 . Peak Build Rating 56 | 7 10 14 21 30 25 24 40 44 43 43 56 48 Average Rating 26 | 5 7 11 18 23 24 23 34 42 43 43 45 25 On Entrance 25 | . 7 8 13 17 25 24 24 38 43 43 43 48 Naked Turns 67 | . . . . . . . . . . . . 67 Heaviest Build 26 | 13 13 15 19 20 20 20 26 26 24 24 24 24 Greatest Support 26 | 20 20 16 21 22 22 22 26 26 26 26 26 26 Greatest Overweight (x) 3 | 3 . . . . . . . . . . . 1 Average Overweight (x) . | . . . . . . . . . . . . . Largest Inventory Capacity 10 | 8 8 8 10 10 10 10 10 10 10 10 10 10 Average Capacity 9 | 7 8 8 9 10 10 10 10 10 10 10 10 7 Most Carried 10 | 3 7 8 10 10 10 10 10 9 9 9 10 10 Average Carried 8 | 1 5 5 8 9 9 9 9 9 9 9 9 7 Final Capacity 10 | 8 8 8 10 10 10 10 10 10 10 10 10 5 Final Carried 10 | 3 7 8 10 10 10 10 10 9 9 9 10 5 Class Distribution -------------------- 68% | Sprinter 23% | Scout 4% | Mutant 3% | Assassin Dominant Class ---------------- Sprinter | -10/Materials Sprinter | -9/Materials Sprinter | -8/Materials Sprinter | -8/Storage Sprinter | -8/Recycling Sprinter | -8/Scraptown Scout | -6/Factory Scout | -5/Factory Scout | -5/Upper Caves Scout | -5/Upper Caves Scout | -5/Zhirov Scout | -4/Proximity Caves Resources | -11 -10 -9 -8 -8 -8 -8 -6 -5 -5 -5 -5 -4 ----------- Run | Yrd Mat Mat Mat Sto Rec Scr Fac Fac Upp Upp Zhi Pro Matter Collected 680 | 223 . . 125 202 . 10 85 . . . . 35 Remotely . | . . . . . . . . . . . . . Salvage Created 142 | 19 . . . 104 . . 19 . . . . . Parts 4 | 3 . . . 1 . . . . . . . . Haulers Intercepted 1 | . . . . 1 . . . . . . . . Recyclers Shooed . | . . . . . . . . . . . . . Parts Field Recycled . | . . . . . . . . . . . . . Retrieved Matter . | . . . . . . . . . . . . . Parts Self-Destructed . | . . . . . . . . . . . . . Prevented . | . . . . . . . . . . . . . Kills | -11 -10 -9 -8 -8 -8 -8 -6 -5 -5 -5 -5 -4 ------- Run | Yrd Mat Mat Mat Sto Rec Scr Fac Fac Upp Upp Zhi Pro Combat Hostiles Destroyed 1 | . . . . 1 . . . . . . . . Melee 1 | . . . . 1 . . . . . . . . Classes Destroyed 4 | 1 . . . 3 . . . . . . . . Tunneler 1 | 1 . . . . . . . . . . . . Hauler 1 | . . . . 1 . . . . . . . . Operator 2 | . . . . 1 . . 1 . . . . . Grunt 1 | . . . . 1 . . . . . . . . Best Kill Streak 1 | 1 . . . 1 . . 1 . . . . . Combat Bots Only 1 | . . . . 1 . . . . . . . . Max Kills in Single Turn 1 | 1 . . . 1 . . 1 . . . . . Gunslinging . | . . . . . . . . . . . . . Exploded . | . . . . . . . . . . . . . Melee 1 | . . . . 1 . . . . . . . . Uniques/NPCs Destroyed . | . . . . . . . . . . . . . Combat | -11 -10 -9 -8 -8 -8 -8 -6 -5 -5 -5 -5 -4 -------- Run | Yrd Mat Mat Mat Sto Rec Scr Fac Fac Upp Upp Zhi Pro Hostile Shots Fired 217 | . . 43 17 4 . 5 24 . 3 1 . 120 Missed 114 | . . 26 8 2 . 1 17 . 1 1 . 58 Hits 103 | . . 17 9 2 . 4 7 . 2 . . 62 Melee 1 | . . . . . . 1 . . . . . . Projectile 102 | . . 17 9 2 . 3 7 . 2 . . 62 Damage Taken 1595 | . . 242 92 25 70 37 76 . 39 . . 1014 Core 1073 | . . 85 47 . 25 . 5 . 23 . . 888 Absorbed by Shields 65 | . . 36 29 . . . . . . . . . Regen/Repaired (Parts) 71 | . . . . . . . 25 46 . . . . Core Remaining (%) 92 | 100 100 78 . . . 86 99 . . . . . Volleys Fired 4 | 1 . . . . . . . . . . 3 . Largest 2 | 2 . . . . . . . . . . 1 . Hottest 80 | 80 . . . . . . . . . . 5 . Shots Fired 5 | 2 . . . . . . . . . . 3 . Gun 2 | 2 . . . . . . . . . . . . Cannon . | . . . . . . . . . . . . . Launcher . | . . . . . . . . . . . . . Special 3 | . . . . . . . . . . . 3 . Kinetic . | . . . . . . . . . . . . . Thermal 2 | 2 . . . . . . . . . . . . Explosive . | . . . . . . . . . . . . . Electromagnetic . | . . . . . . . . . . . . . Robot Hit Streak 4 | 1 . . . . . . . . . . 4 . Robot Miss Streak 1 | 1 . . . . . . . . . . . . Penetration Max . | . . . . . . . . . . . . . Secondary Targets . | . . . . . . . . . . . . . Shots Hit Robots 12 | 1 . . . 7 . . 1 . . . 3 . Core Hits 1 | 1 . . . . . . . . . . . . Critical Kills . | . . . . . . . . . . . . . Critical Parts Destroyed 3 | . . . . 2 . . 1 . . . . . Critical Strikes 3 | . . . . 2 . . 1 . . . . . Smash 3 | . . . . 2 . . 1 . . . . . Melee Attacks 39 | . . 3 5 19 . . 5 3 . 4 . . Impact 39 | . . 3 5 19 . . 5 3 . 4 . . Slashing . | . . . . . . . . . . . . . Piercing . | . . . . . . . . . . . . . Sneak Attacks 2 | . . . . 2 . . . . . . . . Combat Hostiles . | . . . . . . . . . . . . . Follow-up Attacks . | . . . . . . . . . . . . . Damage Inflicted 525 | 10 . 66 . 396 . . 52 . . . . 1 Guns 10 | 10 . . . . . . . . . . . . Cannons . | . . . . . . . . . . . . . Explosions . | . . . . . . . . . . . . . Melee 448 | . . . . 396 . . 52 . . . . . Ramming 67 | . . 66 . . . . . . . . . 1 Kinetic . | . . . . . . . . . . . . . Thermal 10 | 10 . . . . . . . . . . . . Explosive . | . . . . . . . . . . . . . Electromagnetic . | . . . . . . . . . . . . . Impact 448 | . . . . 396 . . 52 . . . . . Slashing . | . . . . . . . . . . . . . Piercing . | . . . . . . . . . . . . . Highest Corruption 1 | . . 1 . . . . . . . . . 1 Average Corruption 1 | . . 1 . . . . . . . . . 1 Corruption Purged . | . . . . . . . . . . . . . Corruption Blocked . | . . . . . . . . . . . . . Overload Shots . | . . . . . . . . . . . . . Overflow Damage 285 | . . . . 233 . . 52 . . . . . Projectiles . | . . . . . . . . . . . . . Explosions . | . . . . . . . . . . . . . Melee 285 | . . . . 233 . . 52 . . . . . Knockbacks 1 | . . . . 1 . . . . . . . . Impact 1 | . . . . 1 . . . . . . . . Kinetic . | . . . . . . . . . . . . . Secondary . | . . . . . . . . . . . . . Self-Inflicted Damage 66 | . . 66 . . . . . . . . . . Shots . | . . . . . . . . . . . . . Rammed 1 | . . . . . . . . . . . . 1 Targets Rammed 1 | . . . . . . . . . . . . 1 Kicked . | . . . . . . . . . . . . . Crushed . | . . . . . . . . . . . . . Highest Temperature 132 | 18 . 7 29 35 79 111 132 48 54 90 27 126 Average Temperature 32 | 12 . 3 8 10 26 46 40 15 27 33 9 65 Received Heat Transfer 190 | . . 61 45 9 12 6 6 . . . . 51 Siege Activations . | . . . . . . . . . . . . . Martial Activations . | . . . . . . . . . . . . . Shielding Activations . | . . . . . . . . . . . . . Robots Disrupted . | . . . . . . . . . . . . . Combat Hostiles . | . . . . . . . . . . . . . Robots Corrupted 1 | . . . . 1 . . . . . . . . Combat Hostiles . | . . . . . . . . . . . . . Parts Fried 10 | . . . . 6 . . 4 . . . . . Impact Corruptions 7 | . . . . 6 . . 1 . . . . . Robots Melted . | . . . . . . . . . . . . . Combat Hostiles . | . . . . . . . . . . . . . Parts Melted . | . . . . . . . . . . . . . Heat Transferred 25 | 25 . . . . . . . . . . . . Parts Sabotaged . | . . . . . . . . . . . . . Parts Stolen . | . . . . . . . . . . . . . Parts Stripped . | . . . . . . . . . . . . . Power Chain Reactions . | . . . . . . . . . . . . . Alert | -11 -10 -9 -8 -8 -8 -8 -6 -5 -5 -5 -5 -4 ------- Run | Yrd Mat Mat Mat Sto Rec Scr Fac Fac Upp Upp Zhi Pro Maximum Alert Level . | . . . . . . . . . . . . . Low Security (%) 100 | 100 100 100 100 100 100 . 100 100 . . . . Level 1 . | . . . . . . . . . . . . . Level 2 . | . . . . . . . . . . . . . Level 3 . | . . . . . . . . . . . . . Level 4 . | . . . . . . . . . . . . . Level 5 . | . . . . . . . . . . . . . High Security . | . . . . . . . . . . . . . Max Security . | . . . . . . . . . . . . . Peak Influence 82 | 5 10 82 32 41 20 . 51 30 . . . . Initial 32 | . . . 32 1 . . . 24 . . . . Average 6 | . 1 15 10 8 1 . 2 8 . . . . Influence Increases 829 | 5 10 172 86 156 49 . 74 67 . 105 . 105 Destroy 0b10 Robot/C 20 | . . . . 20 . . . . . . . . Destroy 0b10 Robot/NC 20 | 5 . . . 10 . . 5 . . . . . Destroy Leader 12 | . . . . 12 . . . . . . . . Successful Hack 189 | . 10 5 37 51 49 . 21 16 . . . . Disable Machine 60 | . . 15 . 30 . . 15 . . . . . Destroy Structure 18 | . . 2 4 3 . . 3 6 . . . . Partial Spotted 165 | . . 45 45 30 . . . 45 . . . . Lose Combat Pursuer 345 | . . 105 . . . . 30 . . 105 . 105 Influence Decreases 754 | 5 10 95 158 161 49 . 23 92 20 56 55 30 Entered New Map 143 | . . . 45 4 . . . 27 10 2 55 . Time Decay 557 | 5 10 75 93 148 49 . 18 65 10 54 . 30 Lost Part 54 | . . 20 20 9 . . 5 . . . . . Squads Dispatched 10 | . . 1 1 4 . . 2 2 . . . . Investigation 5 | . . . . 3 . . 1 1 . . . . Extermination 2 | . . . . . . . 1 1 . . . . Reinforcement 3 | . . 1 1 1 . . . . . . . . Assault . | . . . . . . . . . . . . . Garrison . | . . . . . . . . . . . . . Intercept . | . . . . . . . . . . . . . Searches Triggered . | . . . . . . . . . . . . . Construction Impeded . | . . . . . . . . . . . . . Haulers Reinforced . | . . . . . . . . . . . . . Active Scanning Responses . | . . . . . . . . . . . . . Cargo Convoy Interrupts . | . . . . . . . . . . . . . Stealth | -11 -10 -9 -8 -8 -8 -8 -6 -5 -5 -5 -5 -4 --------- Run | Yrd Mat Mat Mat Sto Rec Scr Fac Fac Upp Upp Zhi Pro Distress Signals 6 | . . 1 1 3 . . 1 . . . . . Communications Jammed . | . . . . . . . . . . . . . Distress Signals . | . . . . . . . . . . . . . Times Spotted 133 | . 1 24 30 32 . 13 5 5 1 7 . 15 Peak Tracking Total 14 | . 2 14 11 8 . 7 4 3 1 7 . 9 Tactical Retreats 27 | . . 4 5 10 . 1 1 . . 3 . 3 Traps | -11 -10 -9 -8 -8 -8 -8 -6 -5 -5 -5 -5 -4 ------- Run | Yrd Mat Mat Mat Sto Rec Scr Fac Fac Upp Upp Zhi Pro Traps Triggered 1 | . . . . 1 . . . . . . . . Indirectly . | . . . . . . . . . . . . . Trap Hack Attempts . | . . . . . . . . . . . . . Triggered . | . . . . . . . . . . . . . Disarmed . | . . . . . . . . . . . . . Reprogrammed . | . . . . . . . . . . . . . Reused . | . . . . . . . . . . . . . Traps Extracted . | . . . . . . . . . . . . . Installed . | . . . . . . . . . . . . . Triggered . | . . . . . . . . . . . . . Machines | -11 -10 -9 -8 -8 -8 -8 -6 -5 -5 -5 -5 -4 ---------- Run | Yrd Mat Mat Mat Sto Rec Scr Fac Fac Upp Upp Zhi Pro Machines Disabled 4 | . . 1 . 2 . . 1 . . . . . Max in Single Turn 1 | . . 1 . 1 . . 1 . . . . . Machines Repaired . | . . . . . . . . . . . . . Machines Dismantled . | . . . . . . . . . . . . . Machines Sabotaged . | . . . . . . . . . . . . . Overloaded Fab Kills . | . . . . . . . . . . . . . Hacking | -11 -10 -9 -8 -8 -8 -8 -6 -5 -5 -5 -5 -4 --------- Run | Yrd Mat Mat Mat Sto Rec Scr Fac Fac Upp Upp Zhi Pro Machines Accessed 52 | . 1 3 6 9 7 7 7 4 . . 8 . Terminals 29 | . 1 3 5 8 6 . 4 2 . . . . Fabricators 1 | . . . . . . . 1 . . . . . Repair Stations 4 | . . . . 1 . . 1 2 . . . . Recycling Units 1 | . . . . . . . 1 . . . . . Scanalyzers . | . . . . . . . . . . . . . Garrison Access 1 | . . . 1 . . . . . . . . . Total Hacks 193 | . 3 11 29 22 27 33 14 15 . . 39 . Successful 137 | . 2 5 19 8 16 33 6 9 . . 39 . Failed 56 | . 1 6 10 14 11 . 8 6 . . . . Catastrophic 7 | . . 1 1 4 1 . . . . . . . Database Lockouts . | . . . . . . . . . . . . . Manual 76 | . 3 10 25 15 11 . 6 6 . . . . Terminals 99 | . 3 11 27 21 22 . 7 8 . . . . Fabricators 2 | . . . . . . . 2 . . . . . Repair Stations 12 | . . . . 1 . . 4 7 . . . . Recycling Units 1 | . . . . . . . 1 . . . . . Scanalyzers . | . . . . . . . . . . . . . Garrison Access 2 | . . . 2 . . . . . . . . . Terminal Hacks 97 | . . 2 7 3 11 33 1 1 . . 39 . Record 60 | . . . . . 5 27 . 1 . . 27 . Part Schematic 7 | . . . . 2 1 . . . . . 4 . Robot Schematic 1 | . . . . . 1 . . . . . . . Robot Analysis 14 | . . . 4 . 1 5 . . . . 4 . Prototype ID Bank 4 | . . . . . . . . . . . 4 . Open DSF 1 | . . . . . . . 1 . . . . . Branch Access Points 2 | . . . 1 . 1 . . . . . . . Terminal Index 2 | . . 1 1 . . . . . . . . . Alert Level 2 | . . 1 . . 1 . . . . . . . Locate Traps 1 | . . . 1 . . . . . . . . . Zone Layout 2 | . . . . 1 1 . . . . . . . Proto ID Catalog 1 | . . . . . . 1 . . . . . . Fabricator Hacks . | . . . . . . . . . . . . . Repair Station Hacks 8 | . . . . . . . 3 5 . . . . Scan Component 5 | . . . . . . . 2 3 . . . . Repair 3 | . . . . . . . 1 2 . . . . Recycling Unit Hacks . | . . . . . . . . . . . . . Scanalyzer . | . . . . . . . . . . . . . Garrison Access Hacks 1 | . . . 1 . . . . . . . . . Unlock Access 1 | . . . 1 . . . . . . . . . Unauthorized Hacks 31 | . 2 3 11 5 5 . 2 3 . . . . Terminals 30 | . 2 3 11 5 5 . 1 3 . . . . Botnet 6 | . . 1 4 . . . . 1 . . . . Operators 4 | . 1 . 2 . . . . 1 . . . . Skim 20 | . 1 2 5 5 5 . 1 1 . . . . Fabricators . | . . . . . . . . . . . . . Repair Stations 1 | . . . . . . . 1 . . . . . Recycling Units . | . . . . . . . . . . . . . Fedlink 1 | . . . . . . . 1 . . . . . Scanalyzers . | . . . . . . . . . . . . . Garrison Access . | . . . . . . . . . . . . . Data Cores Recovered . | . . . . . . . . . . . . . Used . | . . . . . . . . . . . . . Hacking Detections 33 | . 1 3 5 9 6 . 5 4 . . . . Full Trace Events 2 | . . . . 1 . . . 1 . . . . Feedback Events . | . . . . . . . . . . . . . Feedback Blocked . | . . . . . . . . . . . . . Robot Schematics Acquired 1 | . . . . . 1 . . . . . . . Robots Built . | . . . . . . . . . . . . . Authchips . | . . . . . . . . . . . . . Time . | . . . . . . . . . . . . . Total Robot Build Rating . | . . . . . . . . . . . . . Part Schematics Acquired 7 | . . . . 2 1 . . . . . 4 . Parts Built . | . . . . . . . . . . . . . Authchips . | . . . . . . . . . . . . . Time . | . . . . . . . . . . . . . Total Part Build Rating . | . . . . . . . . . . . . . Parts Repaired 3 | . . . . . . . 1 2 . . . . Time 128 | . . . . . . . 64 64 . . . . Parts Recycled . | . . . . . . . . . . . . . Recycled Matter . | . . . . . . . . . . . . . Retrieved Matter . | . . . . . . . . . . . . . Retrieved Components . | . . . . . . . . . . . . . Parts Scanalyzed . | . . . . . . . . . . . . . Part Schematics Acquired . | . . . . . . . . . . . . . Parts Damaged . | . . . . . . . . . . . . . Bothacking | -11 -10 -9 -8 -8 -8 -8 -6 -5 -5 -5 -5 -4 ------------ Run | Yrd Mat Mat Mat Sto Rec Scr Fac Fac Upp Upp Zhi Pro Used RIF Installer . | . . . . . . . . . . . . . Robots Hacked 3 | . . . . . . . . . . . 3 . Non-combat . | . . . . . . . . . . . . . Combat 3 | . . . . . . . . . . . 3 . Robot Hacks Applied 3 | . . . . . . . . . . . 3 . parse_system 3 | . . . . . . . . . . . 3 . Relay Couplers Released . | . . . . . . . . . . . . . Fabnet Peak Effective % . | . . . . . . . . . . . . . Robots Rewired . | . . . . . . . . . . . . . Allies Hacked . | . . . . . . . . . . . . . Hacks Repelled . | . . . . . . . . . . . . . Allies | -11 -10 -9 -8 -8 -8 -8 -6 -5 -5 -5 -5 -4 -------- Run | Yrd Mat Mat Mat Sto Rec Scr Fac Fac Upp Upp Zhi Pro Total Allies . | . . . . . . . . . . . . . Largest Group . | . . . . . . . . . . . . . Highest-Rated Group . | . . . . . . . . . . . . . Highest-Rated Ally . | . . . . . . . . . . . . . Total Orders . | . . . . . . . . . . . . . Ally Attacks . | . . . . . . . . . . . . . Total Damage . | . . . . . . . . . . . . . Kills . | . . . . . . . . . . . . . Allies Corrupted . | . . . . . . . . . . . . . Allies Melted . | . . . . . . . . . . . . . Intel | -11 -10 -9 -8 -8 -8 -8 -6 -5 -5 -5 -5 -4 ------- Run | Yrd Mat Mat Mat Sto Rec Scr Fac Fac Upp Upp Zhi Pro Active Infowar (turns) 3704 | 28 113 174 214 559 753 762 255 258 34 395 72 87 Optics 3175 | . . . . 559 753 762 255 258 34 395 72 87 Sensors 40 | . . . . . . . 40 . . . . . Terrain 989 | . . . . . . . 190 254 34 395 31 85 Seismic 315 | 28 113 174 . . . . . . . . . . ECM 2429 | . . . 214 559 753 762 137 4 . . . . Robot Analysis Total 14 | . . . 4 . 1 5 . . . . 4 . Derelict Logs Recovered 4 | . . . . . . . . . . 2 . 2 Drone Launches . | . . . . . . . . . . . . . Drone Recoveries . | . . . . . . . . . . . . . Exploration | -11 -10 -9 -8 -8 -8 -8 -6 -5 -5 -5 -5 -4 ------------- Run | Yrd Mat Mat Mat Sto Rec Scr Fac Fac Upp Upp Zhi Pro Turns Passed 3962 | 78 113 271 257 559 753 762 255 258 34 395 72 155 Spaces Moved 7180 | 49 160 595 535 887 527 2062 459 455 161 531 230 529 Core 137 | 5 . . . . . . . . . . . 132 Treads . | . . . . . . . . . . . . . Legs 71 | 44 27 . . . . . . . . . . . Wheels . | . . . . . . . . . . . . . Hover . | . . . . . . . . . . . . . Flight 6972 | . 133 595 535 887 527 2062 459 455 161 531 230 397 Fastest Speed 21 | 50 32 26 24 24 24 24 21 21 21 21 21 21 Average Speed 25 | 123 46 26 24 24 24 24 21 21 21 21 21 28 Slowest Speed 200 | 200 120 29 27 24 24 24 21 21 21 21 21 108 Overloaded Moves . | . . . . . . . . . . . . . Propulsion Burnouts . | . . . . . . . . . . . . . Robots Hopped 43 | . 1 23 11 4 4 . . . . . . . Potential Cave-ins . | . . . . . . . . . . . . . Cave-ins Triggered . | . . . . . . . . . . . . . Teleports 1 | . . . . . . . . . . . 1 . Exploration Rate (%) 52 | 4 39 56 54 69 94 96 15 17 41 70 62 60 Regions Visited 12 Branch Regions 7 Pre-discovered Areas 9 | . . . . 2 . . . . . 2 3 2 Known Exits Taken 8 | . . . 1 1 1 . 1 1 1 1 1 . Unknown Exits Taken 4 | 1 1 1 . . . 1 . . . . . . Scrap Searched 7 | . . . . . . 2 . . 1 3 . 1 Spaces Dug 20 | . . 3 4 3 . . 3 3 . 4 . . Terrain Destroyed 20 | . . 3 4 3 . . 3 3 . 4 . . Melee 20 | . . 3 4 3 . . 3 3 . 4 . . Projectile . | . . . . . . . . . . . . . AOE . | . . . . . . . . . . . . . Terrain Rammed 1 | . . 1 . . . . . . . . . . Walls Destroyed . | . . . . . . . . . . . . . Machines Disabled 1 | . . 1 . . . . . . . . . . Actions | -11 -10 -9 -8 -8 -8 -8 -6 -5 -5 -5 -5 -4 --------- Run | Yrd Mat Mat Mat Sto Rec Scr Fac Fac Upp Upp Zhi Pro Total 9220 | 60 198 677 643 1195 1149 2329 612 609 160 806 248 534 Wait 1909 | . 24 87 90 280 622 263 124 147 . 272 . . Move 7085 | 48 157 549 514 878 518 2061 458 454 160 530 229 529 Hop 40 | . 1 22 9 4 4 . . . . . . . Pick Up 36 | 3 4 5 7 2 3 2 9 . . . 1 . Fast Attach 22 | 7 . 2 1 2 . . 1 2 . . 7 . Attach 24 | . 3 3 6 4 . 1 5 1 . . . 1 Detach 14 | . 5 1 4 2 . . 1 . . . . 1 Swap 18 | 1 2 2 2 2 . . 3 2 . . 3 1 Drop 27 | . 2 2 5 2 2 2 6 . . . 5 1 Fire 4 | 1 . . . . . . . . . . 3 . Melee 39 | . . 3 5 19 . . 5 3 . 4 . . Ram 2 | . . 1 . . . . . . . . . 1 Kick . | . . . . . . . . . . . . . Crush . | . . . . . . . . . . . . . Escape Stasis . | . . . . . . . . . . . . . Rewire . | . . . . . . . . . . . . . Trap . | . . . . . . . . . . . . . Miscellaneous . | . . . . . . . . . . . . . Route ------- -11/Scrapyard -10/Materials -9/Materials (discovered 2 exits: *Mat x2) -8/Materials (discovered 2 exits: *Sto / Gar) -8/Storage (discovered 2 exits: [*Fac] / *Rec) -8/Recycling (discovered 2 exits: *Fac / *Scr) -8/Scraptown (discovered 2 exits: *Fac x2) -6/Factory (discovered 5 exits: *Fac x4 / Low) -5/Factory -5/Upper Caves -5/Upper Caves -5/Zhirov -4/Proximity Caves History --------- Turn | Location | Event 15 | -11/Scrapyard | Discovered new exit (range 15) 79 | -11/Scrapyard | Entered Materials 168 | -10/Materials | Discovered new exit (range 15) 192 | -10/Materials | Entered another Materials area 192 | -9/Materials | Evolved 2 slots: Propulsion x2 337 | -9/Materials | Discovered new exit (range 16) 406 | -9/Materials | Build established: Sprinter 459 | -9/Materials | Discovered new exit (range 16) 463 | -9/Materials | Entered another Materials area 463 | -8/Materials | Evolved 2 slots: Propulsion x1, Utility x1 622 | -8/Materials | Identified exit to Storage 667 | -8/Materials | Identified exit to Garrison 720 | -8/Materials | Entered Storage 758 | -8/Storage | Met 01-MTF 812 | -8/Storage | Discovered new exit (range 19) 847 | -8/Storage | Found Prototype Launcher 847 | -8/Storage | Identified Gui. Missile Launcher 990 | -8/Storage | Learned Factory trap positions 1046 | -8/Storage | Learned location of 1 exit from Extension 1094 | -8/Storage | Learned 4 Factory zone layouts 1133 | -8/Storage | Learned location of Zion (-7) 1162 | -8/Storage | Identified exit to Recycling 1181 | -8/Storage | Used back door to open Recycling access 1200 | -8/Storage | Learned location of 2 exits from Factory 1279 | -8/Storage | Entered Recycling 1279 | -8/Recycling | Accompanied by 1 ally (01-MTF) 1364 | -8/Recycling | Discovered new exit (range 20) 1443 | -8/Recycling | Learned Storage trap positions 1516 | -8/Recycling | Learned Factory stockpile data 1627 | -8/Recycling | Identified exit to Scraptown 1669 | -8/Recycling | Learned 8 Factory zone layouts 1766 | -8/Recycling | Learned Factory scanalyzer intel 1865 | -8/Recycling | Learned Storage security intel 1930 | -8/Recycling | Learned Factory trap positions 1983 | -8/Recycling | Scanned before Scraplab entrance 2013 | -8/Recycling | Entered Scraplab 2032 | -8/Recycling | Entered Scraptown 2131 | -8/Scraptown | Heard Great Nut preacher, LISTEN AND RECITE! 2148 | -8/Scraptown | Discovered new exit (range 5) 2167 | -8/Scraptown | Visited Assassins FH 2187 | -8/Scraptown | Visited IN-MT5's Study 2195 | -8/Scraptown | Visited Bundlers 2206 | -8/Scraptown | Visited Supply Room 2210 | -8/Scraptown | Visited Awakened 2276 | -8/Scraptown | Visited CPS Storage 2279 | -8/Scraptown | Visited Comm Corps 2297 | -8/Scraptown | Visited UFD Registry 2297 | -8/Scraptown | Registered with UFD as "Phaseguard" 2304 | -8/Scraptown | Visited Chapter 10 2323 | -8/Scraptown | Visited Analyses Database 2333 | -8/Scraptown | Visited Scrap Suit Storage 2341 | -8/Scraptown | Visited Scrapoid Pod Storage 2519 | -8/Scraptown | Visited Infowarlord's Domain 2524 | -8/Scraptown | Visited DA-N13 Charitable Foundation 2529 | -8/Scraptown | Visited Science Guys 2542 | -8/Scraptown | Visited Observation Area 2554 | -8/Scraptown | Visited A0-MCA Data Center 2562 | -8/Scraptown | Given a C- rating by A0-MCA 2574 | -8/Scraptown | Visited LU-1G1's Boring Crew 2597 | -8/Scraptown | Discovered new exit (range 3) 2624 | -8/Scraptown | Met Optimus 2624 | -8/Scraptown | Accepted into 0bPrime 2708 | -8/Scraptown | Civil war broke out across Scraptown 2728 | -8/Scraptown | Found DCF Scrap (28 items) 2776 | -8/Scraptown | Lost 7 allies 2794 | -8/Scraptown | Entered Factory 2794 | -6/Factory | Evolved 4 slots: Power x1, Propulsion x1, Utility x2 2795 | -6/Factory | Identified exit to Lower Caves 2796 | -6/Factory | Identified exit to Factory 2798 | -6/Factory | Loaded intel: 95 trap records 2800 | -6/Factory | Loaded intel: 4 scanalyzer locations 2912 | -6/Factory | Repaired Broken Imp. Flight Unit 2939 | -6/Factory | Loaded intel: 8 recycling unit locations 2971 | -6/Factory | Spotted B-75 Beast 3049 | -6/Factory | Entered another Factory area 3049 | -5/Factory | Evolved 2 slots: Propulsion x1, Utility x1 3050 | -5/Factory | Loaded intel: 88 trap records 3113 | -5/Factory | Repaired VTOL Module 3147 | -5/Factory | Repaired VTOL Module 3304 | -5/Factory | Discovered new exit (range 6) 3305 | -5/Factory | Identified exit to Upper Caves 3307 | -5/Factory | Entered Upper Caves 3332 | -5/Upper Caves | Spotted B-75 Beast 3339 | -5/Upper Caves | Discovered new exit (range 8) 3341 | -5/Upper Caves | Identified exit to Upper Caves 3341 | -5/Upper Caves | Entered another Upper Caves area 3452 | -5/Upper Caves | Build established: Scout 3627 | -5/Upper Caves | Attracted the attention of an 0b10 checkpoint 3631 | -5/Upper Caves | Learned location of Armory (-3) 3665 | -5/Upper Caves | Encountered a Warlord checkpoint 3674 | -5/Upper Caves | Learned location of Warlord (-4) 3708 | -5/Upper Caves | Discovered new exit (range 10) 3717 | -5/Upper Caves | Entered a destroyed Warlord outpost 3728 | -5/Upper Caves | Identified exit to Zhirov 3736 | -5/Upper Caves | Entered Zhirov 3736 | -5/Zhirov | Discovered new exit (range 3) 3737 | -5/Zhirov | Identified exit to Proximity Caves 3740 | -5/Zhirov | Met Zhirov 3750 | -5/Zhirov | Learned location of Quarantine (-2) 3750 | -5/Zhirov | Learned location of Testing (-3) 3750 | -5/Zhirov | Learned location of Command (-1) 3756 | -5/Zhirov | Zhirov requested help retrieving the SGEMP Prototype 3785 | -5/Zhirov | Found Alien Artifact 3785 | -5/Zhirov | Identified Integrated Reactor 3785 | -5/Zhirov | Installed Integrated Reactor, increased core energy generation (+10) 3789 | -5/Zhirov | Found Alien Artifact 3789 | -5/Zhirov | Identified Transdimensional Reconstructor 3789 | -5/Zhirov | Warped through subspace 3808 | -5/Zhirov | Entered Proximity Caves 3895 | -4/Proximity Caves | Released all parts (9) 3919 | -4/Proximity Caves | Core integrity fell below 50% 3925 | -4/Proximity Caves | Lost 4 parts (4n) 3950 | -4/Proximity Caves | Core integrity fell below 20% 3963 | -4/Proximity Caves | Destroyed by S-27 Virus with Autogun Last Messages --------------- 03843_ Acquired derelict log, extracted data. World map confirmed: -3/Testing. 03880_ Acquired derelict log, extracted data. World map updated: -3/Research. 03891_ VTOL Module destroyed. 03891_ Dropped Remote Datajack. 03894_ VTOL Module destroyed. 03894_ Cesium-ion Thruster destroyed. 03894_ VTOL Module destroyed. 03895_ Released Power Amplifier. 03895_ Released Imp. Flight Unit. 03895_ Released Lgt. Angular Momentum Engine. 03895_ Released Imp. Terrain Scan Processor. 03895_ Released Flight Unit. 03895_ Released Med. Storage Unit. 03895_ Released Adv. Visual Processing Unit. 03895_ Released Adv. Signal Interpreter. 03895_ Released Imp. Terrain Scanner. 03941_ Slammed into S-27 Virus. [Achievement: This Is Interesting...] Map ----- +----------------------------------------------------+ | ?????????????????????????????????????????????????? | | ?????????????????????????????????????????????????? | | ?????????????????????????????????????????????????? | | ??? ???????????????????????????????????????????? | | ??? #??????????????????????????????????????????? | | ?? #??????????????????????????????????????????? | | ? #?????????????????????????????????????????? | | # ?????????????????????????????????????????? | | ????????????????????????????????????????? | | ?????????????????????????????????????????? | | #??? ??????????????????????????????????? | | ##???? ??????????????????????????????????? | | #????? ??????????????????????????????????? | | #????? ??????????????????????????????????? | | ##????# ??????????????????????????????????? | | ##???# ?????????????????????????????????? | | ##??# ??????????????????????????????????? | | #??# ??????????????????????????????????? | | #??# ??????????????????????????????????? | | #?## ??????????????????????????????????? | | #?# #??####??????##????????????????????? | | ##?# #### ##????# #????????????????????? | | ##???# #??## ##???????????????????? | | # #?????# ss s #### ##??????????????????? | | # #?????# s #??????????????????? | | #?????# # # @ #??????????????????? | | ##?????# ## ######## ##??????????????????? | | #????### #####??????? #???????????????????? | | ###??# #???????????? #??????????????????? | | ##?# #???????????? #?????????????????? | | ## ### ###????????????? ????????????????? | | #### #??????????????? ???????????????? | | #??# #####???????????????? ??????????????? | | ???#### #???????????????????? #????????????? | | ??????# #????????????????????? ##????????????? | | ??????###????????????????????? ##?????????????? | | ???????????????????????????????####??????????????? | | ?????????????????????????????????????????????????? | | ?????????????????????????????????????????????????? | | ?????????????????????????????????????????????????? | | ?????????????????????????????????????????????????? | | ?????????????????????????????????????????????????? | | ?????????????????????????????????????????????????? | | ?????????????????????????????????????????????????? | | ?????????????????????????????????????????????????? | | ?????????????????????????????????????????????????? | | ?????????????????????????????????????????????????? | | ?????????????????????????????????????????????????? | | ?????????????????????????????????????????????????? | | ?????????????????????????????????????????????????? | +----------------------------------------------------+ Best States ------------- Heat Dissipation 40 Energy Generation 30 Energy Capacity 250 Matter Stores 300 Matter Capacity 300 Sight Range 20 Robot Scan Range 16 Terrain Scan Range 16 Terrain Scan Density 110 ECM Strength 1 Power Amplification 20 Utility Shielding 90 Evasion (%) 65 Item Schematics ----------------- Adv. Terrain Scan Processor | -8/Storage | Hacked Cmb. Airjet | -8/Storage | Hacked Remote Datajack | -8/Recycling | Hacked Assault Drone Bay | -5/Zhirov | Free Exp. Heat Sink | -5/Zhirov | Free Exp. Optical Array | -5/Zhirov | Free Imp. Arc Thrower | -5/Zhirov | Free Robot Schematics ------------------ B-36 Bruiser | -8/Recycling | Hacked Fabricated ------------ Nothing Repaired ---------- Imp. Flight Unit | 37% | -6/Factory | Broken VTOL Module | 4% | -5/Factory VTOL Module | 12% | -5/Factory Alien Tech Used ----------------- Integrated Reactor Transdimensional Reconstructor Achievements -------------- Alien Tech Party Time Subspace Traveler The Science Guy This Is Interesting... Challenges ------------ None Game ------ Seed FlightBlastNullifier Manual? 0 Play Time 01:45:55 Cumulative 78.2 hours Start 2025.05.08 @ 18:30:48 End 2025.05.08 @ 20:20:27 Sessions 1 Manual Loads 0 Difficulty Rogue Special Mode None Game No. 85 Rogue 85 Adventurer 0 Explorer 0 Win Type - Total 1 Types 1/0/0/0/0/0/0/0/0/0 Lore% 33 Gallery% 46 Achievement% 41 Wizard Run 0 Options --------- Layout 0 ASCII 0 Keyboard 1 Movement Numpad Keybinds 0 Fullscreen 1 Font 24/Terminus Map View 76x50 Zoom Use 0% Tactical HUD 1 Map Filters NONE Filters NONE Steam 1 RUN: 617f8ee3-5dc0-4950-8f1d-5c4111c336fb